bitfinex/quotes_BTCUSD_20240605
["timestamp","ask_amount","ask_price","bid_price","bid_amount"]
[1717550482283,0.00486,70859.0,70858.0,0.51101654]
[1717550482512,0.00486,70859.0,70858.0,1.03339322]
[1717550482732,0.00486,70859.0,70858.0,1.11274738]
[1717550482951,0.00486,70859.0,70858.0,0.91274738]
[1717550483181,0.00486,70859.0,70858.0,1.09874738]
[1717550483396,0.00486,70859.0,70858.0,0.88474738]
[1717550483616,0.00486,70859.0,70858.0,1.09874738]
[1717550484312,0.00486,70859.0,70858.0,0.91274738]
[1717550484756,0.00486,70859.0,70858.0,1.39500138]
[1717550485005,0.00486,70859.0,70858.0,1.19500138]
[1717550485233,0.00486,70859.0,70858.0,1.39500138]
[1717550485717,0.00486,70859.0,70858.0,1.19500138]
[1717550485957,0.00486,70859.0,70858.0,1.39500138]
[1717550486210,0.00486,70859.0,70858.0,1.28948233]
[1717550487152,0.00486,70859.0,70858.0,1.36718233]
[1717550487668,0.00486,70859.0,70858.0,1.65985921]
[1717550489324,0.00486,70859.0,70858.0,1.94211321]
[1717550490035,0.00486,70859.0,70858.0,1.86988497]
[1717550493235,0.00486,70859.0,70858.0,1.97534391]
[1717550493671,0.00486,70859.0,70858.0,1.77534391]
[1717550493833,0.00486,70859.0,70858.0,1.97534391]
[1717550494658,0.00486,70859.0,70858.0,1.86988497]
[1717550503467,0.002,70869.0,70868.0,0.725535]
[1717550503674,0.002,70869.0,70868.0,1.37212622]
[1717550503882,0.002,70869.0,70868.0,1.30888497]
[1717550504317,0.002,70869.0,70868.0,1.50888497]
[1717550504733,0.002,70869.0,70868.0,1.52288497]
[1717550505044,0.002,70869.0,70868.0,1.78538497]
[1717550505264,0.002,70869.0,70868.0,1.87658497]
[1717550505694,0.2361,70884.0,70882.0,0.02]
[1717550505907,0.2361,70884.0,70883.0,0.52399581]
[1717550506883,0.2361,70884.0,70883.0,0.66507281]
[1717550507251,0.2361,70884.0,70883.0,0.64507281]
[1717550507847,0.2361,70884.0,70883.0,0.67307281]
[1717550508444,0.2361,70884.0,70883.0,0.65907281]
[1717550508668,0.2361,70884.0,70883.0,0.64507281]
[1717550509854,0.2361,70884.0,70883.0,0.67307281]
[1717550510256,0.2361,70884.0,70883.0,0.69307281]
[1717550510466,0.2361,70884.0,70883.0,0.67307281]
[1717550511493,0.2361,70884.0,70883.0,0.69307281]
[1717550514463,0.2361,70884.0,70883.0,0.67307281]
[1717550515657,0.2361,70884.0,70883.0,0.38039593]
[1717550516063,0.2361,70884.0,70883.0,0.67299271]
[1717550516432,0.2361,70884.0,70883.0,0.69299271]
[1717550517393,0.2361,70884.0,70883.0,0.67299271]
[1717550517568,0.2361,70884.0,70883.0,0.69299271]
[1717550518532,0.2361,70884.0,70883.0,0.67299271]
[1717550520313,0.2361,70884.0,70883.0,0.38749678]
[1717550520527,0.2361,70884.0,70883.0,0.32059678]
[1717550520743,0.2361,70884.0,70883.0,0.38749678]
[1717550521133,0.2361,70884.0,70883.0,0.37349678]
[1717550521339,0.2361,70884.0,70883.0,0.35949678]
[1717550521763,0.2361,70884.0,70883.0,0.37349678]
[1717550523026,0.2361,70884.0,70883.0,0.0949]
[1717550523807,0.2361,70884.0,70883.0,0.014]
[1717550524019,0.2361,70884.0,70883.0,0.0949]
[1717550534665,0.2361,70884.0,70883.0,0.028]
[1717550534815,0.397175,70884.0,70883.0,0.028]
[1717550535035,0.497175,70884.0,70883.0,0.028]
[1717550535710,0.497175,70884.0,70883.0,0.014]
[1717550535921,0.497175,70884.0,70883.0,0.016]
[1717550536563,0.497175,70884.0,70883.0,0.014]
[1717550536747,0.498175,70884.0,70883.0,0.015]
[1717550537152,0.498175,70884.0,70883.0,0.001]
[1717550537515,0.498175,70884.0,70865.0,0.4731]
[1717550537516,0.2324,70877.0,70867.0,0.141108]
[1717550537687,0.0805,70876.0,70874.0,0.0669]
[1717550537822,0.1606,70875.0,70874.0,0.0669]
[1717550539464,0.0824,70872.0,70864.0,0.141114]
[1717550539662,0.0824,70872.0,70871.0,0.0669]
[1717550540867,0.0824,70872.0,70871.0,0.014]
[1717550541070,0.2382,70872.0,70871.0,0.0809]
[1717550542775,0.2355,70879.0,70871.0,0.0809]
[1717550542968,0.2355,70879.0,70877.0,0.0669]
[1717550543503,0.0769,70879.0,70877.0,0.0669]
[1717550544528,0.141068,70888.0,70878.0,0.07222824]
[1717550544735,0.1,70887.0,70877.0,0.153]
[1717550544943,0.1,70887.0,70886.0,0.0669]
[1717550546548,0.002,70889.0,70886.0,0.0669]
[1717550547087,0.001,70887.0,70886.0,0.0669]
[1717550548148,0.00186,70887.0,70886.0,0.0669]
[1717550548557,0.00086,70887.0,70886.0,0.0669]
[1717550549413,0.00086,70887.0,70886.0,0.0679]
[1717550549613,0.00186,70887.0,70886.0,0.0679]
[1717550555310,0.00186,70887.0,70886.0,0.39226593]
[1717550555941,0.00186,70887.0,70886.0,0.61453693]
[1717550556154,0.00086,70887.0,70886.0,0.61453693]
[1717550556372,0.00086,70887.0,70886.0,0.62853693]
[1717550556837,0.00086,70887.0,70886.0,0.62753693]
[1717550557275,0.00086,70887.0,70886.0,0.62153693]
[1717550558083,0.00086,70887.0,70886.0,0.60753693]
[1717550558228,0.00086,70887.0,70886.0,0.59353693]
[1717550558430,0.00086,70887.0,70886.0,0.60753693]
[1717550558836,0.00086,70887.0,70886.0,0.62153693]
[1717550559265,0.00086,70887.0,70886.0,0.64153693]
[1717550560002,0.00086,70887.0,70886.0,0.62753693]
[1717550560239,0.00086,70887.0,70886.0,0.64153693]
[1717550561083,0.00086,70887.0,70886.0,0.62153693]
[1717550562258,0.00086,70887.0,70886.0,0.64153693]
[1717550563230,0.00086,70887.0,70886.0,0.78782969]
[1717550564255,0.00086,70887.0,70886.0,0.76782969]
[1717550564812,0.00086,70887.0,70886.0,0.75382969]
[1717550565474,0.00648,70892.0,70888.0,0.141065]
[1717550565654,0.00648,70892.0,70891.0,0.08800052]
[1717550565860,0.00648,70892.0,70891.0,0.23429328]
[1717550568396,0.00648,70892.0,70891.0,0.24829328]
[1717550568782,0.00648,70892.0,70891.0,0.26229328]
[1717550569210,0.00648,70892.0,70891.0,0.24119276]
[1717550571951,0.00648,70892.0,70891.0,0.24119236]
[1717550575082,0.00648,70892.0,70891.0,0.24119236]
[1717550576825,0.00648,70892.0,70891.0,0.62755336]
[1717550578814,0.00648,70892.0,70891.0,0.47785336]
[1717550579219,0.00648,70892.0,70891.0,0.38225336]
[1717550579831,0.00648,70892.0,70891.0,0.24119236]
[1717550580059,0.00648,70892.0,70891.0,0.38225336]
[1717550580474,0.00648,70892.0,70891.0,0.24119236]
[1717550584429,0.00648,70892.0,70891.0,0.38225336]
[1717550585583,0.00648,70892.0,70891.0,0.38224905]
[1717550586001,0.00648,70892.0,70891.0,0.31534905]
[1717550586221,0.00648,70892.0,70891.0,0.38224905]
[1717550589900,0.00648,70892.0,70891.0,0.37410768]
[1717550590351,0.00648,70892.0,70891.0,0.66668079]
[1717550591427,0.00648,70892.0,70891.0,0.6666795]
[1717550594657,0.00648,70892.0,70891.0,0.81109843]
[1717550595465,0.00648,70892.0,70891.0,0.66481167]
[1717550595916,0.00648,70892.0,70891.0,0.68481167]
[1717550597370,0.00648,70892.0,70891.0,0.81110008]
[1717550601020,0.00648,70892.0,70891.0,1.10322308]
[1717550601259,0.00648,70892.0,70891.0,1.45512308]
[1717550601471,0.00648,70892.0,70891.0,1.53439122]
[1717550602149,0.00648,70892.0,70891.0,1.52853259]
[1717550602360,0.00648,70892.0,70891.0,2.01065559]
[1717550602567,0.00648,70892.0,70891.0,2.02465559]
[1717550602568,0.00748,70892.0,70891.0,2.02465559]
[1717550603047,0.00748,70892.0,70891.0,2.11065559]
[1717550603478,0.00748,70892.0,70891.0,2.05775559]
[1717550603686,0.00748,70892.0,70891.0,2.12465559]
[1717550603902,0.00862,70900.0,70891.0,2.12465559]
[1717550603903,0.00862,70900.0,70899.0,0.42]
[1717550604113,0.00862,70900.0,70899.0,2.20989194]
[1717550604326,0.00862,70900.0,70899.0,2.08347559]
[1717550605801,0.00862,70900.0,70899.0,2.09742593]
[1717550606429,0.00862,70900.0,70899.0,2.11142593]
[1717550606647,0.00862,70900.0,70899.0,2.12542593]
[1717550607878,0.00836256,70900.0,70899.0,2.11142593]
[1717550608089,0.00836256,70900.0,70899.0,2.12542593]
[1717550609158,0.00836256,70900.0,70899.0,2.09742593]
[1717550609372,0.00836256,70900.0,70899.0,2.20252956]
[1717550609778,0.00836256,70900.0,70899.0,2.20252913]
[1717550610225,0.00836256,70900.0,70899.0,2.13726099]
[1717550610480,0.00836256,70900.0,70899.0,2.12326099]
[1717550610711,0.00836256,70900.0,70899.0,2.13726099]
[1717550611196,0.00836256,70900.0,70899.0,2.03215748]
[1717550611858,0.00836256,70900.0,70899.0,1.75006648]
[1717550612242,0.00836256,70900.0,70899.0,1.83409943]
[1717550612671,0.00836256,70900.0,70899.0,2.03215748]
[1717550614397,0.00836256,70900.0,70899.0,2.21643702]
[1717550615033,0.002,70909.0,70906.0,0.843094]
[1717550615245,0.002,70909.0,70906.0,2.0556859]
[1717550615454,0.002,70909.0,70906.0,2.07668511]
[1717550616230,0.002,70909.0,70906.0,2.02768748]
[1717550616461,0.002,70909.0,70906.0,2.01368748]
[1717550616886,0.002,70909.0,70906.0,2.04168748]
[1717550617206,0.002,70909.0,70906.0,2.02768748]
[1717550617796,0.002,70909.0,70906.0,1.86968572]
[1717550618056,0.002,70909.0,70906.0,2.06968572]
[1717550618233,0.002,70909.0,70906.0,2.02768748]
[1717550618661,0.002,70909.0,70906.0,1.20722448]
[1717550618867,0.002,70909.0,70906.0,1.32122448]
[1717550619064,0.002,70909.0,70906.0,1.47792448]
[1717550619468,0.002,70909.0,70906.0,0.95226148]
[1717550619869,0.002,70909.0,70906.0,1.03916148]
[1717550621190,0.002,70909.0,70906.0,1.01916148]
[1717550622024,0.002,70909.0,70906.0,1.03916148]
[1717550622604,0.002,70909.0,70906.0,1.19306148]
[1717550624318,0.002,70909.0,70906.0,1.10616148]
[1717550624518,0.002,70909.0,70906.0,1.17306148]
[1717550624775,0.002,70909.0,70906.0,1.04682304]
[1717550624948,0.002,70909.0,70906.0,1.19306141]
[1717550625599,0.002,70909.0,70906.0,1.10616141]
[1717550625779,0.002,70909.0,70906.0,1.01916141]
[1717550626498,0.08911,70907.0,70906.0,1.01916141]
[1717550626935,0.00861,70907.0,70906.0,0.61123041]
[1717550627189,0.00861,70907.0,70906.0,0.46681148]
[1717550627411,0.00861,70907.0,70906.0,0.24113837]
[1717550627412,0.24661,70907.0,70906.0,0.24113837]
[1717550628455,0.24661,70907.0,70906.0,0.22713837]
[1717550628663,0.24661,70907.0,70906.0,0.21313837]
[1717550628900,0.387639,70907.0,70906.0,0.24113837]
[1717550630171,0.387639,70907.0,70906.0,0.25513837]
[1717550630599,0.387639,70907.0,70906.0,0.54765867]
[1717550634654,0.387639,70907.0,70906.0,0.48075867]
[1717550634851,0.24661,70907.0,70906.0,0.48075867]
[1717550635102,0.24661,70907.0,70906.0,0.6251776]
[1717550635338,0.24661,70907.0,70906.0,0.3326573]
[1717550635692,0.24661,70907.0,70906.0,0.62517627]
[1717550636760,0.00861,70907.0,70906.0,0.76620727]
[1717550637078,0.00861,70907.0,70906.0,0.92580727]
[1717550638025,0.00861,70907.0,70906.0,0.94580727]
[1717550638455,0.00861,70907.0,70906.0,0.92580727]
[1717550640770,0.00861,70907.0,70906.0,0.78477627]
[1717550641243,0.00861,70907.0,70906.0,0.90477627]
[1717550641458,0.00861,70907.0,70906.0,1.32540727]
[1717550641666,0.00861,70907.0,70906.0,1.26743691]
[1717550641883,0.00861,70907.0,70906.0,1.29230727]
[1717550642303,0.00861,70907.0,70906.0,1.33437313]
[1717550642940,0.00861,70907.0,70906.0,1.34492923]
[1717550643145,0.00861,70907.0,70906.0,1.24492923]
[1717550643357,0.00861,70907.0,70906.0,1.30286337]
[1717550643798,0.00861,70907.0,70906.0,1.30286089]
[1717550644950,0.00861,70907.0,70906.0,1.35541939]
[1717550645385,0.00861,70907.0,70906.0,1.39230727]
[1717550645599,0.00861,70907.0,70906.0,1.49230727]
[1717550645827,0.00861,70907.0,70906.0,2.14058276]
[1717550646050,0.00861,70907.0,70906.0,2.36385645]
[1717550646268,0.00861,70907.0,70906.0,2.25866959]
[1717550646765,0.00861,70907.0,70906.0,2.24466959]
[1717550647015,0.00861,70907.0,70906.0,2.23400292]
[1717550647259,0.00861,70907.0,70906.0,2.37422716]
[1717550648109,0.00861,70907.0,70906.0,2.37420879]
[1717550648382,0.00861,70907.0,70906.0,2.26198455]
[1717550648913,0.002,70909.0,70908.0,1.279237]
[1717550649161,0.002,70909.0,70908.0,2.14713122]
[1717550649382,0.002,70909.0,70908.0,2.27345444]
[1717550650028,0.002,70909.0,70908.0,2.14713122]
[1717550650255,0.002,70909.0,70908.0,2.28743995]
[1717550650442,0.002,70909.0,70908.0,2.16113122]
[1717550650912,0.002,70909.0,70908.0,1.87907622]
[1717550651346,0.00861,70920.0,70919.0,0.925027]
[1717550651557,0.002,70929.0,70928.0,0.842964]
[1717550651764,0.0129643,70933.0,70929.0,0.701286]
[1717550651981,0.0129643,70933.0,70929.0,1.23345214]
[1717550652195,0.0129643,70933.0,70929.0,1.37967214]
[1717550652420,0.0129643,70933.0,70929.0,1.46374973]
[1717550652670,0.0129643,70933.0,70932.0,1.02294]
[1717550652883,0.002,70949.0,70939.0,0.592766]
[1717550653107,0.002,70949.0,70948.0,0.45226693]
[1717550653320,0.002,70949.0,70948.0,0.61280722]
[1717550653527,0.002,70949.0,70948.0,0.92532619]
[1717550653980,0.002,70949.0,70948.0,0.69747819]
[1717550654187,0.002,70949.0,70948.0,1.00522619]
[1717550654601,0.002,70949.0,70948.0,0.71270722]
[1717550655306,0.002,70949.0,70948.0,0.72670722]
[1717550655713,0.002,70949.0,70948.0,0.74070722]
[1717550656763,0.002,70949.0,70948.0,0.76070722]
[1717550657377,0.002,70949.0,70948.0,0.74070722]
[1717550657796,0.002,70949.0,70948.0,1.04260322]
[1717550657995,0.002,70949.0,70948.0,1.26560322]
[1717550658199,0.002,70949.0,70948.0,2.07029922]
[1717550658432,0.00017015,70954.0,70953.0,1.475614]
[1717550658562,0.00017015,70954.0,70953.0,2.18544922]
[1717550660017,0.00017015,70954.0,70953.0,2.19944922]
[1717550660228,0.00017015,70954.0,70953.0,1.97944922]
[1717550660432,0.00017015,70954.0,70953.0,2.19944922]
[1717550661508,0.00017015,70954.0,70953.0,2.21344922]
[1717550663006,0.00862,70971.0,70957.0,0.32]
[1717550663216,0.00862,70971.0,70957.0,1.42322893]
[1717550663443,0.00862,70971.0,70957.0,1.66832893]
[1717550663639,0.00862,70971.0,70957.0,1.95018893]
[1717550664058,0.00862,70971.0,70957.0,1.66832893]
[1717550664286,0.00862,70971.0,70957.0,1.46832893]
[1717550664453,0.00362,70958.0,70957.0,1.46832893]
[1717550664667,0.00362,70958.0,70957.0,1.95018893]
[1717550665036,0.00362,70958.0,70957.0,1.75880893]
[1717550665234,0.00362,70958.0,70957.0,1.95880893]
[1717550665613,0.00362,70958.0,70957.0,1.97280893]
[1717550665813,0.00362,70958.0,70957.0,1.98680893]
[1717550666267,0.00362,70958.0,70957.0,1.98670748]
[1717550667607,0.00362,70958.0,70957.0,1.78670748]
[1717550668014,0.00362,70958.0,70957.0,1.98670748]
[1717550668215,0.00362,70958.0,70957.0,1.80352263]
[1717550669039,0.00362,70958.0,70957.0,2.00352263]
[1717550669271,0.00362,70958.0,70957.0,1.80352263]
[1717550669675,0.00362,70958.0,70957.0,1.80352328]
[1717550670587,0.00362,70958.0,70957.0,2.00352328]
[1717550674589,0.00362,70958.0,70957.0,0.68490328]
[1717550674787,0.00362,70958.0,70957.0,0.54397328]
[1717550675029,0.16622,70958.0,70957.0,0.43535328]
[1717550675432,0.16622,70958.0,70957.0,0.41853813]
[1717550675433,0.24162,70958.0,70957.0,0.41853813]
[1717550675654,0.24162,70958.0,70957.0,0.39053813]
[1717550675833,0.24162,70958.0,70957.0,0.39056009]
[1717550676072,0.24162,70958.0,70957.0,0.41856009]
[1717550676278,0.24162,70958.0,70957.0,0.30456009]
[1717550676697,0.382548,70958.0,70957.0,0.30456009]
[1717550676907,0.382548,70958.0,70957.0,0.31856009]
[1717550677329,0.382548,70958.0,70957.0,0.17414116]
[1717550677937,0.382548,70958.0,70957.0,0.16014116]
[1717550678202,0.382548,70958.0,70957.0,0.14614116]
[1717550678411,0.382548,70958.0,70957.0,0.16014116]
[1717550678619,0.402548,70958.0,70957.0,0.17414116]
[1717550678856,0.402548,70958.0,70957.0,0.18814116]
[1717550679069,0.402548,70958.0,70957.0,0.17414116]
[1717550679505,0.402548,70958.0,70957.0,0.18814116]
[1717550679715,0.684404,70958.0,70957.0,0.18814116]
[1717550680261,0.684404,70958.0,70957.0,0.10484116]
[1717550680883,0.684404,70958.0,70957.0,0.07684116]
[1717550681296,0.684404,70958.0,70957.0,0.014]
[1717550681679,0.442802,70955.0,70954.0,0.000946]
[1717550682017,0.95587,70955.0,70954.0,0.000946]
[1717550682221,1.05587,70955.0,70954.0,0.000946]
[1717550682804,0.674044,70948.0,70947.0,0.02109358]
[1717550683010,0.23,70935.0,70927.0,0.07222824]
[1717550683184,0.23,70935.0,70934.0,0.43336945]
[1717550683417,0.23,70935.0,70934.0,0.21752036]
[1717550684473,0.23,70935.0,70934.0,0.14441893]
[1717550684704,0.231,70935.0,70934.0,0.15841893]
[1717550685537,0.001,70935.0,70934.0,0.17241893]
[1717550685750,0.001,70935.0,70934.0,0.27241893]
[1717550685988,0.001,70935.0,70934.0,0.29241893]
[1717550686135,0.001,70935.0,70934.0,0.43339493]
[1717550688823,0.001,70935.0,70934.0,0.41339493]
[1717550689021,0.001,70935.0,70934.0,0.43339493]
[1717550689605,0.001,70935.0,70934.0,0.41339493]
[1717550690239,0.001,70935.0,70934.0,0.43339493]
[1717550690673,0.001,70935.0,70934.0,0.63339493]
[1717550690823,0.001,70935.0,70934.0,0.91534693]
[1717550691024,0.001,70935.0,70934.0,0.63339493]
[1717550691232,0.001,70935.0,70934.0,0.95679493]
[1717550691720,0.001,70935.0,70934.0,1.23874693]
[1717550692326,0.001,70935.0,70934.0,1.31914693]
[1717550693542,0.001,70935.0,70934.0,1.41914693]
[1717550693746,0.001,70935.0,70934.0,1.70109893]
[1717550694216,0.001,70935.0,70934.0,1.72409893]
[1717550694863,0.001,70935.0,70934.0,1.71009893]
[1717550695101,0.1546,70952.0,70949.0,0.240945]
[1717550695308,0.1546,70952.0,70950.0,0.14441893]
[1717550695516,0.0905,70952.0,70950.0,0.14441893]
[1717550695926,0.0808,70954.0,70951.0,0.1]
[1717550696134,0.08362,70958.0,70952.0,0.14441893]
[1717550696750,0.08362,70958.0,70952.0,0.24441893]
[1717550698404,0.08362,70958.0,70952.0,0.24541893]
[1717550698602,0.1662,70957.0,70952.0,0.24641893]
[1717550699326,0.1662,70957.0,70952.0,0.24541893]
[1717550699796,0.1662,70957.0,70952.0,0.24641893]
[1717550700406,0.1662,70957.0,70952.0,0.24541893]
[1717550700831,0.1662,70957.0,70952.0,0.24641893]
[1717550703960,0.00362,70958.0,70956.0,0.2668]
[1717550704129,0.00362,70958.0,70957.0,0.14441893]
[1717550704566,0.00362,70958.0,70957.0,0.28534893]
[1717550705146,0.00362,70958.0,70957.0,0.40534893]
[1717550705551,0.00362,70958.0,70957.0,0.41934893]
[1717550707019,0.00362,70958.0,70957.0,0.43334893]
[1717550708693,0.00362,70958.0,70957.0,0.71520893]
[1717550709497,0.00362,70958.0,70957.0,0.91520893]
[1717550710273,0.00362,70958.0,70957.0,0.90120893]
[1717550710508,0.00362,70958.0,70957.0,0.91520893]
[1717550710701,0.00362,70958.0,70957.0,0.71520893]
[1717550710999,0.00362,70958.0,70957.0,0.70120893]
[1717550711383,0.00362,70958.0,70957.0,0.71520893]
[1717550713328,0.00362,70958.0,70957.0,0.72575308]
[1717550713530,0.00362,70958.0,70957.0,1.55541308]
[1717550713760,0.00362,70958.0,70957.0,1.35541308]
[1717550713962,0.00362,70958.0,70957.0,1.54486893]
[1717550714333,0.00362,70958.0,70957.0,1.34486893]
[1717550714532,0.00362,70958.0,70957.0,1.51166893]
[1717550715009,0.00362,70958.0,70957.0,2.09352893]
[1717550715436,0.00362,70958.0,70957.0,2.1726762]
[1717550715572,0.00362,70958.0,70957.0,2.27754371]
[1717550716173,0.00362,70958.0,70957.0,2.67754371]
[1717550716380,0.00362,70958.0,70957.0,2.5726762]
[1717550716816,0.00362,70958.0,70957.0,2.67754371]
[1717550717427,0.00362,70958.0,70957.0,2.70054371]
[1717550717633,0.00862,70963.0,70962.0,1.3688]
[1717550717844,0.00862,70963.0,70962.0,1.65053922]
[1717550718043,0.00862,70963.0,70962.0,1.71344849]
[1717550718458,0.00862,70963.0,70962.0,1.65053922]
[1717550718899,0.00862,70963.0,70962.0,1.94637922]
[1717550719099,0.00862,70963.0,70962.0,1.74637922]
[1717550719337,0.00862,70963.0,70962.0,1.96037922]
[1717550720552,0.00862,70963.0,70962.0,1.51617922]
[1717550720749,0.00862,70963.0,70962.0,1.53511415]
[1717550721164,0.00862,70963.0,70962.0,1.52079386]
[1717550721642,0.00862,70963.0,70962.0,1.47885893]
[1717550722055,0.00862,70963.0,70962.0,1.67885893]
[1717550722261,0.00702836,70963.0,70962.0,1.83705893]
[1717550722825,0.00702836,70963.0,70962.0,1.9149267]
[1717550723269,0.00702836,70963.0,70962.0,1.97778501]
[1717550723717,0.00702836,70963.0,70962.0,1.9149267]
[1717550723844,0.00702836,70963.0,70962.0,1.97778756]
[1717550724423,0.00702836,70963.0,70962.0,1.9149267]
[1717550725451,0.00702836,70963.0,70962.0,1.9235467]
[1717550726234,0.00702836,70963.0,70962.0,1.96543212]
[1717550726635,0.00702836,70963.0,70962.0,1.9465467]
[1717550726838,0.00702836,70963.0,70962.0,2.00940756]
[1717550727036,0.00702836,70963.0,70962.0,1.9465467]
[1717550727743,0.00702836,70963.0,70962.0,1.99536055]
[1717550727965,0.00702836,70963.0,70962.0,2.00936055]
[1717550728184,0.00702836,70963.0,70962.0,1.5313467]
[1717550728368,0.00702836,70963.0,70962.0,1.47347893]
[1717550728568,0.00702836,70963.0,70962.0,1.48747893]
[1717550728779,0.00702836,70963.0,70962.0,1.48402055]
[1717550728979,0.00702836,70963.0,70962.0,1.47002055]
[1717550729342,0.00702836,70963.0,70962.0,1.46402055]
[1717550729544,0.00702836,70963.0,70962.0,1.48402055]
[1717550729949,0.00702836,70963.0,70962.0,1.46402055]
[1717550730165,0.00702836,70963.0,70962.0,1.49802055]
[1717550731194,0.00702836,70963.0,70962.0,1.93692055]
[1717550731472,0.00702836,70963.0,70962.0,2.23592088]
[1717550731675,0.00702836,70963.0,70962.0,2.25687161]
[1717550731882,0.00702836,70963.0,70962.0,2.19401943]
[1717550732100,0.00702836,70963.0,70962.0,2.28477307]
[1717550732315,0.00702836,70963.0,70962.0,2.29877307]
[1717550733790,0.00702836,70963.0,70962.0,2.28477307]
[1717550734195,0.00702836,70963.0,70962.0,2.19401943]
[1717550734395,0.00702836,70963.0,70962.0,2.29875113]
[1717550735245,0.00702836,70963.0,70962.0,2.19401943]
[1717550740367,0.00702836,70963.0,70962.0,2.2189996]
[1717550742251,0.00702836,70963.0,70962.0,2.0189996]
[1717550742458,0.00702836,70963.0,70962.0,2.2189996]
[1717550743229,0.00702836,70963.0,70962.0,2.0189996]
[1717550743418,0.00702836,70963.0,70962.0,2.2189996]
[1717550747659,0.00685876,70963.0,70962.0,2.2189996]
[1717550748296,0.00685876,70963.0,70962.0,2.34489455]
[1717550749888,0.00685876,70963.0,70962.0,2.2189996]
[1717550752116,0.00685876,70963.0,70962.0,2.1188996]
[1717550754458,0.00685876,70963.0,70962.0,2.0521996]
[1717550754670,0.00685876,70963.0,70962.0,2.1188996]
[1717550756165,0.1578,70989.0,70968.0,0.42]
[1717550756364,0.1578,70989.0,70987.0,0.3348]
[1717550756365,0.002,70989.0,70987.0,0.3348]
[1717550756576,0.0143439,71005.0,70990.0,0.1]
[1717550756810,0.00203748,70991.0,70990.0,1.61388393]
[1717550756993,0.00203748,70991.0,70990.0,1.78652726]
[1717550757214,0.00203748,70991.0,70990.0,1.81801043]
[1717550757419,0.0143439,71005.0,70994.0,1.324282]
[1717550757642,1.09661005,71000.0,70999.0,0.360847]
[1717550757862,1.09661005,71000.0,70999.0,0.72980643]
[1717550758070,1.09661005,71000.0,70999.0,1.01150043]
[1717550758287,0.62796218,71000.0,70999.0,1.31319443]
[1717550758505,4e-05,71040.0,71019.0,0.740807]
[1717550758716,0.1609,71023.0,71019.0,0.38522593]
[1717550759354,0.1609,71023.0,71019.0,0.47192593]
[1717550759965,0.1609,71023.0,71019.0,0.40522593]
[1717550760139,0.1609,71023.0,71019.0,0.38522593]
[1717550760356,0.23937027,71032.0,71019.0,0.38522593]
[1717550760755,0.23937027,71032.0,71019.0,0.39922593]
[1717550760932,0.23937027,71032.0,71019.0,0.27241893]
[1717550761136,0.16344,71020.0,71019.0,0.27241893]
[1717550761334,0.23924,71020.0,71019.0,0.27241893]
[1717550762268,0.23924,71020.0,71019.0,0.17241893]
[1717550762636,0.25924,71020.0,71019.0,0.17241893]
[1717550762836,0.23924,71020.0,71019.0,0.17241893]
[1717550763460,0.23924,71020.0,71019.0,0.15841893]
[1717550763805,0.23924,71020.0,71019.0,0.17241893]
[1717550764011,0.25924,71020.0,71019.0,0.15841893]
[1717550764331,0.23924,71020.0,71019.0,0.14441893]
[1717550764492,0.25924,71020.0,71019.0,0.15841893]
[1717550764911,0.23924,71020.0,71019.0,0.15841893]
[1717550765110,0.23924,71020.0,71019.0,0.17241893]
[1717550765543,0.25924,71020.0,71019.0,0.17241893]
[1717550765746,0.25924,71020.0,71019.0,0.18641893]
[1717550765943,0.25924,71020.0,71019.0,0.17241893]
[1717550765944,0.23924,71020.0,71019.0,0.17241893]
[1717550766163,0.23924,71020.0,71019.0,0.18641893]
[1717550766854,0.23924,71020.0,71019.0,0.17241893]
[1717550767059,0.23924,71020.0,71019.0,0.18641893]
[1717550768649,0.380045,71020.0,71019.0,0.18641893]
[1717550768851,0.400045,71020.0,71019.0,0.18641893]
[1717550769232,0.400045,71020.0,71019.0,0.042]
[1717550769654,0.288131,71007.0,71006.0,0.4731]
[1717550769890,0.140842,71002.0,70993.0,0.1]
[1717550770101,0.1913,71000.0,70994.0,0.14441893]
[1717550770306,0.140854,70995.0,70994.0,0.14441893]
[1717550770697,0.302554,70995.0,70994.0,0.14441893]
[1717550771293,0.322554,70995.0,70994.0,0.14441893]
[1717550771497,0.322554,70995.0,70994.0,0.014]
[1717550771699,0.302554,70995.0,70986.0,0.07222824]
[1717550771899,0.302554,70995.0,70994.0,0.07222824]
[1717550771900,0.1617,70995.0,70994.0,0.07222824]
[1717550772139,0.1617,70995.0,70994.0,0.23064717]
[1717550772341,0.1627,70995.0,70994.0,0.22964717]
[1717550772974,0.1617,70995.0,70994.0,0.21664717]
[1717550773145,0.1627,70995.0,70994.0,0.22864717]
[1717550773365,0.001,70995.0,70994.0,0.32864717]
[1717550773561,0.001,70995.0,70994.0,0.46950317]
[1717550773766,0.002,70995.0,70994.0,0.46950317]
[1717550773971,0.002,70995.0,70994.0,0.32864717]
[1717550774170,0.001,70995.0,70994.0,0.32864717]
[1717550774813,0.001,70995.0,70994.0,0.46950317]
[1717550774814,0.002,70995.0,70994.0,0.46950317]
[1717550775815,0.002,70995.0,70994.0,0.32864717]
[1717550776454,0.002,70995.0,70994.0,0.46950317]
[1717550777265,0.002,70995.0,70994.0,0.32864717]
[1717550777844,0.002,70995.0,70994.0,0.46950317]
[1717550778453,0.002,70995.0,70994.0,0.32864717]
[1717550779761,0.002,70995.0,70994.0,0.46950317]
[1717550780065,0.002,70995.0,70994.0,0.32864717]
[1717550782022,0.002,70995.0,70994.0,0.46950317]
[1717550784965,0.002,70995.0,70994.0,0.32864717]
[1717550785178,0.002,70995.0,70994.0,1.89462917]
[1717550785382,4e-05,71020.0,71019.0,0.140807]
[1717550785577,4e-05,71020.0,71019.0,0.28522593]
[1717550786273,4e-05,71020.0,71019.0,0.58522593]
[1717550786675,4e-05,71020.0,71019.0,0.14441893]
[1717550787050,4e-05,71020.0,71019.0,0.28522593]
[1717550787451,0.00104,71020.0,71019.0,0.39722593]
[1717550787655,0.00104,71020.0,71019.0,0.29722593]
[1717550788337,0.00104,71020.0,71019.0,0.15641893]
[1717550788701,0.00104,71020.0,71019.0,0.17041893]